bitfinex/quotes_SOLUSD_20251130
["timestamp","ask_amount","ask_price","bid_price","bid_amount"]
[1764491748673,23.493587,136.61,136.6,0.2]
[1764491748878,26.42775167,136.61,136.6,0.2]
[1764491750477,19.54807461,136.59,136.58,0.2]
[1764491750683,22.76807461,136.59,136.58,0.2]
[1764491750983,23.38807461,136.59,136.58,0.2]
[1764491751583,32.48234267,136.59,136.58,1e-08]
[1764491751916,35.72155328,136.59,136.58,1e-08]
[1764491752088,39.80352284,136.59,136.58,1e-08]
[1764491753783,36.58352284,136.59,136.58,1e-08]
[1764491753982,39.82352284,136.59,136.58,1e-08]
[1764491755002,36.58352284,136.59,136.58,1e-08]
[1764491755205,39.82352284,136.59,136.58,1e-08]
[1764491757002,42.7585487,136.59,136.58,1e-08]
[1764491758984,38.8985487,136.59,136.58,1e-08]
[1764491759187,42.7585487,136.59,136.58,1e-08]
[1764491762981,45.99775931,136.59,136.58,1e-08]
[1764491763817,16.308864,136.54,136.48,0.2]
[1764491763987,3.23921061,136.51,136.48,0.2]
[1764491764312,6.47921061,136.51,136.48,0.2]
[1764491764501,9.8355292,136.51,136.48,0.2]
[1764491764818,9.4155292,136.51,136.48,0.2]
[1764491765212,17.16099986,136.51,136.48,0.2]
[1764491765512,42.56413192,136.51,136.48,0.2]
[1764491766409,45.80334253,136.51,136.48,0.2]
[1764491767311,39.32492131,136.51,136.48,0.2]
[1764491767622,42.56413192,136.51,136.48,0.2]
[1764491768209,39.32492131,136.51,136.48,0.2]
[1764491768417,42.56413192,136.51,136.48,0.2]
[1764491768711,45.80334253,136.51,136.48,0.2]
[1764491768917,25.11880892,136.49,136.48,0.2]
[1764491769113,31.88234267,136.49,136.48,0.2]
[1764491769285,32.30234267,136.49,136.48,0.2]
[1764491770117,32.30234267,136.49,136.48,1e-08]
[1764491770614,39.62888673,136.49,136.48,1e-08]
[1764491771050,25.40313206,136.45,136.44,0.2]
[1764491771208,31.88234267,136.45,136.44,0.2]
[1764491771515,32.30234267,136.45,136.44,0.2]
[1764491771819,9.09426806,136.44,136.4,4.43634985]
[1764491772113,12.33347867,136.41,136.4,3.71634985]
[1764491772414,31.88234267,136.41,136.4,3.71634985]
[1764491772616,32.30234267,136.41,136.4,3.71634985]
[1764491772823,39.63318351,136.41,136.4,3.71634985]
[1764491773306,39.21318351,136.41,136.4,3.71634985]
[1764491773507,16.4251089,136.41,136.4,4.43634985]
[1764491773710,22.90431951,136.41,136.4,4.43634985]
[1764491774590,33.47720839,136.41,136.4,4.43634985]
[1764491774789,3.23921061,136.43,136.4,4.43634985]
[1764491774996,12.04915553,136.42,136.41,0.72]
[1764491775190,12.33347867,136.42,136.41,0.72]
[1764491775403,15.57347867,136.42,136.41,0.72]
[1764491776632,14.41721723,136.42,136.41,0.72]
[1764491776992,12.04994492,136.42,136.41,0.72]
[1764491777501,8.80994492,136.42,136.41,0.72]
[1764491777695,19.38024839,136.42,136.41,0.72]
[1764491777913,3.24,136.42,136.41,0.72]
[1764491778113,8.80994492,136.43,136.41,0.72]
[1764491778315,3.24,136.43,136.41,10.13377281]
[1764491778922,12.04994492,136.43,136.42,0.72]
[1764491782232,21.74698341,136.43,136.42,0.72]
[1764491783921,9.09426806,136.42,136.4,3.71634985]
[1764491784126,14.41721723,136.41,136.4,4.37634985]
[1764491784328,14.41721723,136.41,136.4,3.71634985]
[1764491785419,14.41721723,136.41,136.4,4.41634985]
[1764491785824,21.74805807,136.41,136.4,4.41634985]
[1764491786706,16.14078576,136.41,136.4,4.41634985]
[1764491786908,19.38078576,136.41,136.4,4.41634985]
[1764491788123,21.74805807,136.41,136.4,4.41634985]
[1764491788531,21.74805807,136.41,136.4,3.71634985]
[1764491789327,19.6651089,136.41,136.4,3.71634985]
[1764491791932,21.74805807,136.41,136.4,3.71634985]
[1764491792122,19.6651089,136.41,136.4,4.41634985]
[1764491792332,21.74805807,136.41,136.4,4.41634985]
[1764491793237,21.74805807,136.41,136.4,3.71634985]
[1764491793413,21.74805807,136.41,136.4,4.41634985]
[1764491795235,19.6651089,136.41,136.4,4.41634985]
[1764491795412,19.38078576,136.41,136.4,4.41634985]
[1764491795728,12.04994492,136.41,136.4,4.41634985]
[1764491796119,19.38078576,136.41,136.4,4.41634985]
[1764491796927,21.74805807,136.41,136.4,4.41634985]
[1764491797825,14.13289409,136.41,136.4,4.41634985]
[1764491798028,12.04994492,136.41,136.4,4.41634985]
[1764491798826,19.6651089,136.41,136.4,3.71634985]
[1764491799028,21.74805807,136.41,136.4,3.71634985]
[1764491799609,21.74805807,136.41,136.4,4.41634985]
[1764491800037,19.6651089,136.41,136.4,4.41634985]
[1764491800210,16.4251089,136.41,136.4,4.41634985]
[1764491800413,19.6651089,136.41,136.4,4.41634985]
[1764491800610,16.14078576,136.41,136.4,4.41634985]
[1764491800835,19.6651089,136.41,136.4,4.41634985]
[1764491801023,19.6651089,136.41,136.4,3.71634985]
[1764491801224,19.6651089,136.41,136.4,4.41634985]
[1764491801430,21.74805807,136.41,136.4,3.71634985]
[1764491802419,22.16805807,136.41,136.4,3.71634985]
[1764491802640,21.74805807,136.41,136.4,3.71634985]
[1764491803019,22.16805807,136.41,136.4,3.71634985]
[1764491803218,38.47692207,136.41,136.4,3.71634985]
[1764491803636,9.09426806,136.4,136.39,0.2]
[1764491803833,11.59721723,136.4,136.39,0.2]
[1764491804338,11.59721723,136.4,136.34,0.7]
[1764491804546,8.80994492,136.35,136.34,0.7]
[1764491804720,14.13289409,136.35,136.34,0.7]
[1764491805121,21.46696083,136.35,136.34,0.7]
[1764491805346,21.75128397,136.35,136.34,0.7]
[1764491805541,21.75128397,136.35,136.32,0.7]
[1764491805837,8.80994492,136.32,136.28,9.42063705]
[1764491806140,12.04994492,136.32,136.29,0.7]
[1764491806339,12.04994492,136.32,136.29,2.78294917]
[1764491806736,7.33462167,136.34,136.31,2.08294917]
[1764491806943,7.33462167,136.34,136.3,0.7]
[1764491807243,7.33462167,136.34,136.31,2.08294917]
[1764491807441,7.33462167,136.34,136.3,2.78294917]
[1764491807937,7.33462167,136.34,136.31,2.78294917]
[1764491808146,7.33462167,136.34,136.31,0.7]
[1764491808523,7.33462167,136.34,136.31,2.78294917]
[1764491808821,10.57412588,136.35,136.32,2.08294917]
[1764491809147,10.57412588,136.35,136.32,2.78294917]
[1764491809345,10.57412588,136.35,136.33,0.7]
[1764491810244,3.24,136.35,136.33,0.7]
[1764491810623,10.57419242,136.35,136.33,0.7]
[1764491810822,3.24,136.35,136.33,0.7]
[1764491811964,8.80994492,136.35,136.33,0.7]
[1764491812264,12.04994492,136.35,136.33,0.7]
[1764491813073,19.38408358,136.35,136.33,0.7]
[1764491814631,19.38420855,136.35,136.33,0.7]
[1764491816077,12.04994492,136.35,136.33,0.7]
[1764491817934,19.38424793,136.35,136.33,0.7]
[1764491818448,19.38424793,136.35,136.33,0.66]
[1764491818757,12.04994492,136.35,136.33,0.66]
[1764491819135,19.38402454,136.35,136.33,0.66]
[1764491822259,19.38402454,136.35,136.32,0.66]
[1764491822949,8.80994492,136.33,136.31,0.66]
[1764491823135,8.80994492,136.33,136.32,0.66]
[1764491823586,3.24,136.33,136.32,0.66]
[1764491824034,19.38508758,136.33,136.32,0.66]
[1764491824660,3.24,136.33,136.32,0.66]
[1764491825460,7.33423829,136.35,136.32,2.74294917]
[1764491825640,3.24,136.34,136.33,2.08294917]
[1764491825838,3.24,136.34,136.33,2.74294917]
[1764491827468,3.24,136.34,136.33,0.66]
[1764491828166,3.83283307,136.39,136.33,0.66]
[1764491828352,18.3297237,136.4,136.37,2.08294917]
[1764491828353,19.38239835,136.38,136.37,2.08294917]
[1764491828661,18.3297237,136.4,136.37,2.08294917]
[1764491828662,10.57190001,136.4,136.37,2.08294917]
[1764491828859,10.57190001,136.4,136.38,0.66]
[1764491829565,10.57190001,136.4,136.38,2.74294917]
[1764491829937,10.57190001,136.4,136.38,0.66]
[1764491830341,10.57190001,136.4,136.34,18.33577939]
[1764491830342,0.28432314,136.38,136.35,0.66]
[1764491830537,3.24,136.37,136.34,0.66]
[1764491830759,3.24,136.37,136.35,0.66]
[1764491831947,8.95210649,136.42,136.36,2.08294917]
[1764491832160,3.24,136.41,136.38,2.08294917]
[1764491832367,3.24,136.41,136.39,2.74294917]
[1764491832575,3.83102696,136.45,136.4,2.08294917]
[1764491832761,3.83102696,136.45,136.41,2.08294917]
[1764491832965,8.80994492,136.44,136.41,0.66]
[1764491833267,8.80994492,136.44,136.42,2.74294917]
[1764491833777,8.80994492,136.44,136.43,0.66]
[1764491834454,8.80994492,136.46,136.43,0.66]
[1764491834647,8.80994492,136.46,136.43,7.98974411]
[1764491834970,8.80994492,136.46,136.43,0.66]
[1764491835188,0.28432314,136.45,136.41,2.08294917]
[1764491835357,0.28432314,136.43,136.39,2.74294917]
[1764491835562,8.80994492,136.42,136.39,0.66]
[1764491835757,16.14058718,136.42,136.39,0.66]
[1764491836565,3.24,136.41,136.39,0.66]
[1764491836773,3.24,136.42,136.39,11.2461428]
[1764491837280,3.24,136.42,136.4,0.66]
[1764491837848,10.57044904,136.42,136.4,0.66]
[1764491838847,8.80994492,136.41,136.38,0.66]
[1764491839363,0.28432314,136.4,136.36,0.66]
[1764491839555,12.04994492,136.39,136.36,0.66]
[1764491839974,19.3822568,136.39,136.36,0.66]
[1764491840485,16.1422568,136.39,136.36,0.66]
[1764491840649,3.24,136.39,136.37,3.25429478]
[1764491840844,3.24,136.39,136.36,3.91429478]
[1764491841075,3.24,136.39,136.36,0.66]
[1764491841974,8.80994492,136.38,136.36,0.66]
[1764491842853,7.33241715,136.39,136.37,3.25429478]
[1764491843159,18.32787129,136.41,136.38,3.25429478]
[1764491843160,8.80994492,136.4,136.38,3.25429478]
[1764491843362,10.57124499,136.41,136.39,3.25429478]
[1764491843868,19.38118991,136.41,136.4,0.69]
[1764491844070,19.38118991,136.41,136.38,3.25429478]
[1764491844263,19.38118991,136.41,136.39,0.69]
[1764491845179,19.38118991,136.41,136.37,11.27695882]
[1764491845382,19.38118991,136.41,136.38,0.66]
[1764491845953,19.38118991,136.41,136.38,3.91429478]
[1764491846153,19.38118991,136.41,136.39,0.66]
[1764491846674,3.24,136.41,136.39,3.91429478]
[1764491846880,7.33019948,136.43,136.4,3.25429478]
[1764491847075,19.3801444,136.43,136.4,3.91429478]
[1764491847273,19.3801444,136.43,136.41,0.66]
[1764491847875,22.63443918,136.43,136.41,0.66]
[1764491849383,8.80994492,136.42,136.41,0.66]
[1764491850469,16.14024839,136.42,136.41,0.66]
[1764491850658,8.80994492,136.42,136.41,0.66]
[1764491851161,7.32923607,136.44,136.41,0.66]
[1764491851362,10.56923607,136.44,136.41,0.66]
[1764491851859,3.24,136.44,136.41,7.99083692]
[1764491852268,3.24,136.44,136.42,0.66]
[1764491853262,13.82359673,136.44,136.4,70.13119467]
[1764491853462,13.82359673,136.44,136.41,0.66]
[1764491856076,10.58408347,136.43,136.41,0.66]
[1764491856263,12.0642397,136.42,136.4,62.8]
[1764491856462,3.25429478,136.41,136.4,0.66]
[1764491857487,8.80994492,136.42,136.4,0.66]
[1764491857991,12.04994492,136.42,136.4,0.66]
[1764491858599,19.38034603,136.42,136.4,0.66]
[1764491860192,12.04994492,136.43,136.4,0.66]
[1764491860986,15.3042397,136.43,136.4,0.66]
[1764491862273,22.63426254,136.43,136.4,0.66]
[1764491868706,3.25429478,136.42,136.37,28.91860811]
[1764491868906,3.25429478,136.42,136.4,0.66]
[1764491870217,10.58511168,136.42,136.4,0.66]
[1764491870912,8.80994492,136.41,136.37,3.25429478]
[1764491871112,8.80994492,136.41,136.39,0.66]
[1764491873010,12.04994492,136.42,136.39,0.66]
[1764491873210,10.58369958,136.44,136.39,11.24612152]
[1764491873394,3.24,136.42,136.39,11.24612152]
[1764491873586,3.24,136.42,136.4,0.66]
[1764491875012,16.1398829,136.43,136.4,0.66]
[1764491875215,3.24,136.42,136.4,7.99134645]
[1764491875410,3.24,136.42,136.4,0.66]
[1764491875719,3.24,136.42,136.41,0.69]
[1764491877618,3.24,136.42,136.41,8.02081763]
[1764491877790,7.32908586,136.45,136.41,11.27511241]
[1764491877990,10.56908586,136.45,136.42,0.69]
[1764491878303,13.82338064,136.45,136.42,0.69]
[1764491878505,12.0642397,136.44,136.42,0.69]
[1764491878709,12.0642397,136.44,136.41,0.69]
[1764491879602,19.39386288,136.44,136.41,0.69]
[1764491880814,3.24,136.43,136.39,7.33184632]
[1764491881002,3.25429478,136.41,136.39,0.69]
[1764491881317,9.09426806,136.42,136.4,0.69]
[1764491881514,3.24,136.43,136.4,0.69]
[1764491881816,12.04994492,136.43,136.4,0.69]
[1764491882321,7.32962318,136.44,136.4,11.27543689]
[1764491882502,10.56962318,136.44,136.4,11.27543689]
[1764491882702,10.56962318,136.44,136.41,0.69]
[1764491883212,7.32882211,136.45,136.41,3.94429478]
[1764491883659,7.32882211,136.45,136.42,0.69]
[1764491885115,3.24,136.45,136.42,11.27444934]
[1764491885317,3.24,136.45,136.42,8.02015456]
[1764491885521,3.24,136.45,136.43,0.69]
[1764491887308,7.32828254,136.46,136.43,0.69]
[1764491888231,7.32828254,136.46,136.43,3.94429478]
[1764491888522,8.80994492,136.48,136.45,3.25429478]
[1764491888720,12.04994492,136.48,136.45,3.25429478]
[1764491889026,12.04994492,136.48,136.46,0.69]
[1764491889329,19.37715112,136.48,136.46,0.69]
[1764491890330,8.80994492,136.49,136.46,8.017939]
[1764491890530,8.80994492,136.49,136.47,0.69]
[1764491890897,8.80994492,136.49,136.45,8.01850046]
[1764491891112,8.80994492,136.49,136.46,0.69]
[1764491891428,12.0642397,136.49,136.46,0.69]
[1764491891725,12.0642397,136.49,136.43,63.49]
[1764491891726,10.58220403,136.47,136.43,63.49]
[1764491891893,8.80994492,136.46,136.43,62.8]
[1764491892099,12.0642397,136.46,136.43,63.49]
[1764491893339,0.42,136.45,136.43,62.8]
[1764491893493,15.3042397,136.44,136.41,0.69]
[1764491893698,22.63365545,136.44,136.41,0.69]
[1764491894841,12.0642397,136.42,136.39,0.69]
[1764491895057,12.34856284,136.43,136.4,0.69]
[1764491895745,0.28432314,136.43,136.4,0.69]
[1764491896040,9.09426806,136.43,136.4,0.69]
[1764491896447,16.42413492,136.43,136.4,0.69]
[1764491896942,9.22994492,136.45,136.4,0.69]
[1764491897237,8.80994492,136.43,136.4,0.69]
[1764491898028,16.1397829,136.43,136.4,0.69]
[1764491898442,3.24,136.43,136.4,11.27553827]
[1764491898660,8.80994492,136.48,136.42,2.0817514]
[1764491898826,8.80994492,136.48,136.4,26.34968923]
[1764491898827,12.04994492,136.48,136.44,2.0817514]
[1764491899235,12.04994492,136.48,136.45,0.69]
[1764491901239,21.87911286,136.48,136.44,7.32882068]
[1764491901535,21.45911286,136.48,136.45,0.71]
[1764491902242,8.80994492,136.46,136.43,8.03976618]
[1764491902640,8.80994492,136.46,136.44,0.71]
[1764491904932,16.13811787,136.46,136.43,7.32976618]
[1764491905134,18.21986927,136.46,136.43,0.71]
[1764491905831,3.24,136.45,136.43,0.71]
[1764491909026,3.24,136.45,136.41,70.79042138]
[1764491909225,3.24,136.45,136.42,0.66]
[1764491909928,3.66,136.45,136.41,70.79042138]
[1764491910133,13.07072214,136.45,136.42,0.66]
[1764491910537,13.07072214,136.45,136.41,70.79042138]
[1764491910737,13.07072214,136.45,136.42,0.66]
[1764491911657,8.80994492,136.44,136.42,0.66]
[1764491912729,10.56897074,136.45,136.42,2.7417514]
[1764491913251,16.13756271,136.47,136.43,10.07147565]
[1764491913547,3.24,136.48,136.44,2.0817514]
[1764491913752,3.24,136.48,136.44,65.5417514]
[1764491913937,3.24,136.48,136.45,0.66]
[1764491914851,10.56748379,136.48,136.45,0.66]
[1764491917356,12.64923519,136.48,136.45,0.66]
[1764491920152,10.56748379,136.48,136.45,0.66]
[1764491920454,7.32748379,136.48,136.45,0.66]
[1764491920754,10.56748379,136.48,136.45,0.66]
[1764491925556,10.56748379,136.48,136.45,7.98861953]
[1764491926060,10.56748379,136.48,136.46,0.66]
[1764491927954,12.64923519,136.48,136.45,63.46]
[1764491928152,10.98748379,136.48,136.45,63.46]
[1764491928342,13.06923519,136.48,136.45,63.46]
[1764491928744,8.80994492,136.47,136.45,63.46]
[1764491928944,8.80994492,136.47,136.45,0.66]
[1764491929745,16.1377958,136.47,136.45,0.66]
[1764491930469,16.1377958,136.47,136.39,0.66]
[1764491930470,0.28432314,136.44,136.39,0.66]
[1764491930670,6.02607454,136.46,136.4,0.66]
[1764491930671,5.3217514,136.43,136.4,0.66]
[1764491930846,3.24,136.43,136.4,0.66]
[1764491931170,12.04994492,136.43,136.4,0.66]
[1764491932372,19.37973071,136.43,136.4,0.66]
[1764491935272,21.46148211,136.43,136.4,0.66]
[1764491937051,19.37973071,136.43,136.4,0.66]
[1764491938274,2.0817514,136.45,136.4,7.99132875]
[1764491938574,3.24,136.44,136.41,0.66]
[1764491939774,3.24,136.44,136.41,7.99078467]
[1764491940080,3.24,136.44,136.42,0.66]
[1764491940256,7.32880391,136.45,136.42,0.66]
[1764491943280,14.41601946,136.46,136.42,10.07203063]
[1764491943281,19.37829593,136.46,136.42,10.07203063]
[1764491943710,19.37829593,136.46,136.43,0.66]
[1764491943875,19.37829593,136.46,136.43,2.7417514]
[1764491944177,16.13829593,136.46,136.43,2.7417514]
[1764491944389,10.56776419,136.47,136.44,0.66]
[1764491946669,12.64951559,136.47,136.44,0.66]
[1764491947269,12.04994492,136.47,136.44,0.66]
[1764491948688,19.37782855,136.47,136.44,0.66]
[1764491949078,9.40963503,136.47,136.44,0.66]
[1764491949261,10.56788363,136.47,136.44,0.66]
[1764491951869,11.31169632,136.46,136.42,0.66]
[1764491952070,11.31169632,136.46,136.43,0.66]
[1764491952274,10.89169632,136.46,136.43,0.66]
[1764491953286,7.32869182,136.45,136.43,0.66]
[1764491953881,0.28432314,136.46,136.43,0.66]
[1764491954089,8.80994492,136.46,136.43,0.66]
[1764491957183,8.80994492,136.46,136.43,2.7417514]
[1764491957381,8.80994492,136.46,136.44,0.66]
[1764491958582,10.56776354,136.47,136.44,0.66]
[1764491958883,7.32776354,136.47,136.44,0.66]
[1764491964495,12.04994492,136.48,136.44,74.04053118]
[1764491964680,12.04994492,136.48,136.45,0.7]
[1764491964880,19.37703462,136.48,136.45,0.7]
[1764491965481,10.5665797,136.49,136.45,0.7]
[1764491966208,10.5665797,136.49,136.45,8.02837549]
[1764491966391,10.5665797,136.49,136.46,0.66]
[1764491969499,13.81829078,136.49,136.46,0.66]
[1764491969885,10.5665797,136.49,136.46,0.66]
[1764491970288,3.24,136.49,136.46,0.66]
[1764491970488,10.99786333,136.5,136.46,0.66]
[1764491970489,10.57731519,136.51,136.46,11.23981644]
[1764491970691,12.04994492,136.5,136.46,74.03981644]
[1764491970886,12.04994492,136.5,136.47,0.66]
[1764491971705,19.37597566,136.5,136.47,0.66]
[1764491971889,12.04994492,136.5,136.47,0.66]
[1764491973297,19.37599293,136.5,136.47,0.66]
[1764491973897,12.04994492,136.5,136.47,0.66]
[1764491976288,12.04994492,136.5,136.47,7.98756248]
[1764491976694,12.04994492,136.5,136.48,0.66]
[1764491977806,8.80994492,136.5,136.48,0.66]
[1764491978306,3.25171108,136.49,136.46,63.46]
[1764491978508,6.49171108,136.49,136.46,63.46]
[1764491978680,6.49171108,136.49,136.47,0.66]
[1764491979910,3.25171108,136.49,136.47,0.66]
[1764491980110,6.49171108,136.49,136.47,0.66]
[1764491981223,3.24,136.49,136.47,0.66]
[1764491983698,3.67171108,136.48,136.46,62.8]
[1764491983912,3.67171108,136.48,136.45,7.98851039]
[1764491983913,3.25171108,136.48,136.45,70.78851039]
[1764491984490,8.80994492,136.48,136.45,70.12851039]
[1764491984794,8.80994492,136.48,136.46,0.66]
[1764491985017,19.38880256,136.48,136.46,0.66]
[1764491985225,19.38880256,136.48,136.45,70.78851039]
[1764491985595,19.38880256,136.48,136.45,70.12851039]
[1764491985794,19.38880256,136.48,136.46,0.66]
[1764491986120,16.13709148,136.48,136.46,0.66]
[1764491988790,19.38880256,136.48,136.45,0.66]
[1764491989699,3.25171108,136.47,136.44,7.32899719]
[1764491989900,3.25171108,136.47,136.44,0.66]
[1764491990411,3.24,136.47,136.44,0.66]
[1764491991205,10.56765607,136.47,136.44,0.66]
[1764491994034,3.24,136.47,136.44,11.24092383]
[1764491994244,3.24,136.47,136.45,3.25171108]
[1764491994536,3.24,136.47,136.45,0.66]
[1764491994903,3.24,136.47,136.44,10.58092383]
[1764491995114,3.24,136.47,136.46,0.66]
[1764491995310,3.24,136.47,136.45,0.69]
[1764491996029,19.37714422,136.48,136.45,0.69]
[1764492000330,7.32669968,136.49,136.45,8.01846467]
[1764492000548,10.56669968,136.49,136.45,11.27017575]
[1764492000835,10.56669968,136.49,136.46,0.69]
[1764492002233,8.80994492,136.49,136.46,8.01795162]
[1764492002409,12.04994492,136.49,136.46,8.01795162]
[1764492002732,12.04994492,136.49,136.47,0.69]
[1764492003631,19.37657446,136.49,136.47,0.69]
[1764492005835,16.13657446,136.49,136.47,0.69]
[1764492006035,19.37657446,136.49,136.47,0.69]
[1764492007041,19.37657446,136.49,136.45,73.38025521]
[1764492007214,19.37657446,136.49,136.46,0.69]
[1764492007413,16.13657446,136.49,136.46,0.69]
[1764492007638,19.37657446,136.49,136.46,0.69]
[1764492008442,16.13657446,136.49,136.46,0.69]
[1764492008624,19.37657446,136.49,136.46,0.69]
[1764492009864,16.13657446,136.49,136.46,0.69]
[1764492010151,8.80994492,136.51,136.46,70.81805151]
[1764492010317,12.04994492,136.51,136.47,3.25171108]
[1764492010517,12.04994492,136.51,136.47,3.94171108]
[1764492010720,12.04994492,136.51,136.48,3.94171108]
[1764492011209,12.04994492,136.51,136.49,0.69]
[1764492012249,33.21528783,136.53,136.49,8.01649218]
[1764492012250,29.54378224,136.53,136.49,8.01649218]
[1764492012415,3.24,136.52,136.49,8.01649218]
[1764492012618,3.24,136.52,136.5,0.69]
[1764492014358,3.24,136.52,136.5,8.01578598]
[1764492014824,3.24,136.52,136.51,0.69]
[1764492016035,9.00994492,136.53,136.51,0.69]
[1764492017858,16.33451285,136.53,136.5,0.69]
[1764492018029,20.00622393,136.53,136.5,0.69]
[1764492018230,16.75451285,136.53,136.5,0.69]
[1764492018445,16.75451285,136.53,136.49,62.8]
[1764492018446,20.00622393,136.53,136.49,62.8]
[1764492018731,20.00622393,136.53,136.49,70.81645338]
[1764492018929,20.00622393,136.53,136.49,62.8]
[1764492018930,3.25171108,136.51,136.49,62.8]
[1764492019239,6.49171108,136.51,136.49,62.8]
[1764492019444,6.91171108,136.51,136.49,62.8]
[1764492019647,3.25171108,136.5,136.49,62.8]
[1764492020635,13.06608279,136.51,136.49,62.8]
[1764492021853,18.63636894,136.5,136.49,62.8]
[1764492022157,18.92069208,136.5,136.49,62.8]
[1764492022736,18.92069208,136.5,136.46,0.72]
[1764492022938,16.84027538,136.5,136.46,0.72]
[1764492023153,3.24,136.49,136.46,0.72]
[1764492023657,10.56654588,136.49,136.46,0.72]
[1764492024566,9.40627423,136.51,136.46,8.04770864]
[1764492024866,3.24,136.5,136.46,10.12812534]
[1764492025169,3.24,136.5,136.47,2.8004167]
[1764492025550,10.56585753,136.51,136.48,0.68]
[1764492025951,7.32506635,136.52,136.48,8.00692966]
[1764492026152,7.32506635,136.52,136.48,10.08734636]
[1764492026357,10.76459617,136.53,136.49,2.7604167]
[1764492026556,10.76459617,136.53,136.49,65.5604167]
[1764492026771,3.44,136.53,136.5,2.7604167]
[1764492027145,3.44,136.53,136.51,0.68]
[1764492027857,0.2,136.53,136.52,2.0804167]
[1764492028163,0.2,136.57,136.52,26.39421477]
[1764492028360,0.2,136.57,136.54,2.0804167]
[1764492028769,0.2,136.57,136.55,0.68]
[1764492029261,0.2,136.57,136.55,2.7604167]
[1764492029467,0.2,136.57,136.55,10.08360718]
[1764492029650,0.2,136.57,136.56,0.68]
[1764492030257,0.82,136.57,136.52,21.6292807]
[1764492030468,2.0804167,136.56,136.52,3.24]
[1764492030650,2.0804167,136.56,136.53,0.68]
[1764492030847,8.14244589,136.57,136.53,0.68]
[1764492030848,10.22286259,136.57,136.53,0.68]
[1764492031464,2.7004167,136.56,136.53,0.68]
[1764492031666,2.7004167,136.56,136.52,0.68]
[1764492033464,13.26374148,136.55,136.5,24.31471898]
[1764492033652,5.9404167,136.55,136.51,0.68]
[1764492035247,3.86,136.55,136.51,8.00530943]
[1764492035547,10.76225971,136.57,136.52,2.7604167]
[1764492035969,13.46267641,136.57,136.53,0.68]
[1764492036752,2.0804167,136.56,136.53,0.68]
[1764492037154,7.32332478,136.55,136.51,3.92]
[1764492037463,7.32332478,136.55,136.52,0.68]
[1764492037868,10.02374148,136.55,136.52,0.68]
[1764492039393,10.02374148,136.55,136.5,81.1892807]
[1764492039595,10.02374148,136.55,136.51,0.68]
[1764492041891,7.94332478,136.55,136.51,0.68]
[1764492042055,7.94332478,136.55,136.51,2.7604167]
[1764492042355,7.94332478,136.55,136.52,0.68]
[1764492045802,7.32332478,136.55,136.52,0.68]
[1764492050204,9.40374148,136.55,136.51,62.8]
[1764492050379,2.0804167,136.54,136.51,63.48]
[1764492050577,27.71205345,136.55,136.52,0.68]
[1764492050774,28.33205345,136.55,136.52,0.68]
[1764492054119,31.55205345,136.55,136.52,0.68]
[1764492055237,13.24374148,136.55,136.52,0.68]
[1764492058133,2.0804167,136.54,136.52,0.68]
[1764492059531,10.02431445,136.54,136.51,0.7]
[1764492060034,2.0804167,136.53,136.51,0.7]
[1764492061147,10.02431445,136.54,136.51,0.7]
[1764492061432,9.40431445,136.54,136.51,0.7]
[1764492062138,2.7004167,136.53,136.5,0.7]
[1764492062312,5.3004167,136.53,136.49,7.32632496]
[1764492062512,5.3004167,136.53,136.51,0.7]
[1764492062813,3.22,136.53,136.51,0.7]
[1764492063016,5.3004167,136.53,136.49,7.32632496]
[1764492063237,10.54454176,136.53,136.5,0.7]
[1764492064710,3.22,136.53,136.5,8.02576688]
[1764492065205,7.32395763,136.54,136.51,0.7]
[1764492066414,9.40437433,136.54,136.51,0.7]
[1764492067413,7.32395763,136.54,136.51,0.7]
[1764492068607,7.3235381,136.55,136.52,2.0804167]
[1764492069117,9.4039548,136.55,136.51,7.32546854]